bitfinex/quotes_BTCUSD_20251215
["timestamp","ask_amount","ask_price","bid_price","bid_amount"]
[1765837409236,0.57291743,86133.0,86111.0,0.0002]
[1765837409570,2.76505832,86133.0,86132.0,1e-08]
[1765837409768,2.57293091,86128.0,86111.0,0.0002]
[1765837409976,2.6297399,86128.0,86111.0,0.0002]
[1765837410182,2.5729363,86126.0,86111.0,0.0002]
[1765837410411,2.61176616,86126.0,86111.0,0.0002]
[1765837410608,2.61437616,86126.0,86111.0,0.0002]
[1765837411576,2.61493117,86126.0,86111.0,0.0002]
[1765837412297,2.61593117,86126.0,86111.0,0.0002]
[1765837412586,2.62058824,86126.0,86111.0,0.0002]
[1765837412946,2.62158824,86126.0,86111.0,0.0002]
[1765837413155,0.01161237,86115.0,86111.0,0.0002]
[1765837413372,2.57562636,86113.0,86111.0,0.0002]
[1765837413595,0.2323366,86082.0,86081.0,0.0002]
[1765837413795,0.2323366,86082.0,86073.0,0.02294]
[1765837413796,0.24397204,86076.0,86073.0,0.02294]
[1765837414004,0.0116175,86077.0,86073.0,0.07433]
[1765837414163,0.0116175,86077.0,86070.0,0.02574]
[1765837414164,0.01161791,86074.0,86070.0,0.02574]
[1765837414359,0.23236509,86072.0,86070.0,0.02574]
[1765837414567,0.23236509,86072.0,86070.0,0.07713]
[1765837414806,0.23274573,86072.0,86071.0,0.08528]
[1765837415036,0.25569637,86072.0,86071.0,0.08528]
[1765837415636,0.23274573,86072.0,86071.0,0.03389]
[1765837415848,0.23239971,86059.0,86057.0,0.02574]
[1765837416260,0.23241295,86054.0,86052.0,0.05139]
[1765837416481,0.23241295,86054.0,86050.0,0.02574]
[1765837416482,0.01162074,86053.0,86050.0,0.02574]
[1765837416674,0.2324176,86052.0,86050.0,0.02574]
[1765837416884,0.24403842,86053.0,86038.0,0.02574]
[1765837416885,0.23244061,86044.0,86038.0,0.07713]
[1765837417035,0.01162209,86043.0,86038.0,0.02574]
[1765837417651,0.01162209,86043.0,86032.0,0.07713]
[1765837417652,0.5,86040.0,86032.0,0.07713]
[1765837417952,0.5,86040.0,86032.0,0.02574]
[1765837418137,0.0003804,86040.0,86038.0,0.004]
[1765837418336,0.23245272,86039.0,86038.0,0.004]
[1765837418559,0.0041,86039.0,86038.0,0.004]
[1765837418840,0.0041,86039.0,86038.0,0.008]
[1765837419159,0.0041,86039.0,86038.0,0.004]
[1765837419388,0.2948,86039.0,86038.0,0.004]
[1765837419586,0.2948,86039.0,86031.0,0.02574]
[1765837419587,0.01162304,86036.0,86032.0,0.004]
[1765837419796,0.52725502,86039.0,86032.0,0.004]
[1765837419797,0.2948,86039.0,86032.0,0.004]
[1765837419993,0.23246623,86034.0,86032.0,0.004]
[1765837420176,0.01162277,86038.0,86031.0,0.02574]
[1765837420380,0.01162331,86034.0,86031.0,0.02574]
[1765837420818,0.24409103,86034.0,86031.0,0.02574]
[1765837421064,0.01162331,86034.0,86031.0,0.02574]
[1765837421226,0.12095713,86038.0,86024.0,0.06112024]
[1765837421227,0.01162425,86027.0,86024.0,0.00973024]
[1765837421944,0.23248943,86026.0,86024.0,0.06112024]
[1765837422138,0.23248943,86026.0,86024.0,0.00973024]
[1765837422746,0.00341,86025.0,86024.0,0.00973024]
[1765837422919,0.0478895,86025.0,86024.0,0.00973024]
[1765837423140,0.3385895,86025.0,86024.0,0.00973024]
[1765837423522,0.3643295,86025.0,86024.0,0.00973024]
[1765837423931,0.3643295,86025.0,86024.0,0.01373024]
[1765837424434,0.3643295,86025.0,86024.0,0.00973024]
[1765837424632,0.31644,86025.0,86024.0,0.00973024]
[1765837424856,0.001,86026.0,86024.0,0.00973024]
[1765837425190,0.02998331,86034.0,86028.0,0.03389]
[1765837425395,0.24409989,86031.0,86028.0,0.03389]
[1765837425531,0.03495633,86030.0,86028.0,0.03289]
[1765837425738,0.2441125,86027.0,86024.0,0.0147881]
[1765837425933,0.00765,86025.0,86024.0,0.01373024]
[1765837426134,0.00820501,86025.0,86024.0,0.01373024]
[1765837426368,0.01585501,86025.0,86024.0,0.00973024]
[1765837426799,0.01585501,86025.0,86024.0,0.01373024]
[1765837427176,0.13218616,86025.0,86024.0,0.01373024]
[1765837427418,0.13218616,86025.0,86024.0,0.00973024]
[1765837427419,0.01585501,86025.0,86024.0,0.00973024]
[1765837427597,0.01585501,86025.0,86024.0,0.01373024]
[1765837427999,2.0658734,86025.0,86024.0,0.01373024]
[1765837428226,2.3575734,86025.0,86024.0,0.00973024]
[1765837428467,2.3575734,86025.0,86024.0,0.01173024]
[1765837428597,2.47390455,86025.0,86024.0,0.01173024]
[1765837429507,2.50320131,86025.0,86024.0,0.01173024]
[1765837430027,2.50320131,86025.0,86024.0,0.00973024]
[1765837430790,2.50220131,86025.0,86024.0,0.00973024]
[1765837431202,2.50320131,86025.0,86024.0,0.00973024]
[1765837431609,2.51293155,86025.0,86024.0,0.00973024]
[1765837431930,2.7454221,86025.0,86024.0,0.00973024]
[1765837433489,2.62909095,86025.0,86024.0,0.00973024]
[1765837436384,2.72747594,86025.0,86024.0,0.00973024]
[1765837436583,2.97157594,86025.0,86024.0,0.00973024]
[1765837436787,2.98227071,86025.0,86024.0,0.00173024]
[1765837437185,2.95762784,86025.0,86024.0,0.00173024]
[1765837437384,3.09862056,86025.0,86024.0,0.00173024]
[1765837437618,3.09762056,86025.0,86024.0,0.00173024]
[1765837437770,3.09862056,86025.0,86024.0,0.00173024]
[1765837438292,2.52325273,86002.0,86001.0,4.012e-05]
[1765837438489,0.54738273,86002.0,86001.0,4.012e-05]
[1765837438897,0.31644,86002.0,86001.0,4.012e-05]
[1765837439101,0.54899273,86002.0,86001.0,4.012e-05]
[1765837439582,0.55037266,86002.0,86001.0,0.00204012]
[1765837439734,0.55592266,86002.0,86001.0,0.00204012]
[1765837439939,0.56133266,86002.0,86001.0,0.00204012]
[1765837440301,0.55592266,86002.0,86001.0,0.00204012]
[1765837442290,0.02711993,86002.0,86001.0,0.31994341]
[1765837442503,0.00137993,86002.0,86001.0,0.08738798]
[1765837443101,0.25,86010.0,86004.0,0.01162736]
[1765837443303,0.25,86020.0,86009.0,0.03388]
[1765837443304,0.24414091,86016.0,86009.0,0.03388]
[1765837443498,0.01162574,86016.0,86009.0,0.03388]
[1765837443793,0.01162574,86016.0,86009.0,0.03493786]
[1765837443975,0.2441367,86018.0,86009.0,0.03493786]
[1765837443976,0.0116256,86017.0,86009.0,0.03493786]
[1765837444531,0.24413224,86019.0,86009.0,0.03493786]
[1765837444731,0.23248794,86026.0,86018.0,0.05951]
[1765837444732,0.2907,86026.0,86018.0,0.05951]
[1765837444930,0.00055501,86025.0,86019.0,0.03388]
[1765837445457,0.32565926,86026.0,86019.0,0.03388]
[1765837445458,0.2907,86026.0,86024.0,0.05951]
[1765837445659,0.2907,86026.0,86025.0,0.03388]
[1765837445839,0.01162358,86032.0,86025.0,0.03388]
[1765837445840,0.24409718,86032.0,86025.0,0.08429]
[1765837446040,0.01162371,86031.0,86025.0,0.08429]
[1765837446244,0.06086297,86033.0,86026.0,0.05041]
[1765837446445,0.03002344,86033.0,86026.0,0.05041]
[1765837446688,0.27492758,86035.0,86032.0,0.02563]
[1765837446887,0.01162331,86034.0,86032.0,0.02563]
[1765837447236,0.27493019,86034.0,86032.0,0.02563]
[1765837447632,0.01162331,86034.0,86032.0,0.02563]
[1765837447834,0.01162331,86034.0,86032.0,0.02571388]
[1765837448255,0.04246284,86034.0,86032.0,0.02471388]
[1765837448755,0.03083953,86034.0,86032.0,0.02471388]
[1765837448972,0.001,86034.0,86033.0,0.03388]
[1765837449179,0.001,86034.0,86032.0,0.02771388]
[1765837449438,0.001,86034.0,86033.0,0.03388]
[1765837449852,0.001,86034.0,86033.0,0.08534786]
[1765837450297,0.001,86034.0,86033.0,0.08734786]
[1765837451385,0.03083953,86037.0,86033.0,0.08734786]
[1765837451560,0.03083953,86039.0,86034.0,0.07265662]
[1765837451757,0.03083953,86044.0,86039.0,0.03388]
[1765837451982,0.02480892,86047.0,86034.0,0.05046786]
[1765837451983,0.5,86040.0,86034.0,0.00105786]
[1765837452118,0.29922699,86040.0,86034.0,0.00105786]
[1765837452302,0.25,86040.0,86034.0,5.786e-05]
[1765837452708,0.25,86040.0,86034.0,0.00105786]
[1765837452944,0.001,86044.0,86039.0,0.004]
[1765837453190,0.25,86040.0,86034.0,5.786e-05]
[1765837453530,0.32713047,86047.0,86035.0,0.05041]
[1765837453739,0.01162182,86045.0,86035.0,0.05041]
[1765837453934,0.01162196,86044.0,86035.0,0.05041]
[1765837454146,0.2907,86043.0,86035.0,0.05041]
[1765837454453,0.001,86040.0,86035.0,0.05041]
[1765837455017,0.2907,86043.0,86035.0,0.05041]
[1765837455204,0.2907,86045.0,86035.0,0.05441]
[1765837455399,0.2907,86045.0,86035.0,0.05141]
[1765837455400,0.30232182,86045.0,86035.0,0.05141]
[1765837455598,0.2907,86043.0,86035.0,0.05141]
[1765837455744,0.001,86040.0,86035.0,0.05441]
[1765837455950,0.53475877,86045.0,86035.0,0.05041]
[1765837456151,0.01162196,86044.0,86035.0,0.05241]
[1765837456346,0.03643074,86045.0,86035.0,0.05641]
[1765837456652,0.30232182,86045.0,86035.0,0.05441]
[1765837456889,0.01162196,86044.0,86035.0,0.05441]
[1765837457126,0.55956812,86045.0,86035.0,0.05441]
[1765837457579,0.10852528,86045.0,86035.0,0.05041]
[1765837457786,0.10852528,86045.0,86035.0,0.05541]
[1765837457787,0.08371636,86045.0,86035.0,0.05541]
[1765837458155,0.3402228,86046.0,86035.0,0.05141]
[1765837458156,0.31541388,86046.0,86035.0,0.05141]
[1765837458472,0.02471388,86046.0,86035.0,0.05541]
[1765837459104,0.02471388,86046.0,86035.0,0.05441]
[1765837459335,0.02626889,86046.0,86035.0,0.05141]
[1765837459674,0.01162236,86041.0,86035.0,0.05141]
[1765837460191,0.23244759,86041.0,86035.0,0.05141]
[1765837460394,0.24406939,86042.0,86035.0,0.05141]
[1765837460913,0.24406939,86042.0,86035.0,0.05541]
[1765837461230,0.01162263,86039.0,86035.0,0.05141]
[1765837461431,0.01162236,86041.0,86035.0,0.05141]
[1765837461614,0.01162236,86041.0,86035.0,0.05441]
[1765837461814,0.01162196,86044.0,86035.0,0.05641]
[1765837462042,0.01162223,86042.0,86035.0,0.05641]
[1765837462245,0.01162209,86043.0,86035.0,0.05641]
[1765837462420,0.01162223,86042.0,86035.0,0.05241]
[1765837462617,0.02480892,86044.0,86042.0,0.05951]
[1765837462845,0.01162182,86045.0,86036.0,0.02563]
[1765837463048,0.2907,86044.0,86036.0,0.02563]
[1765837463245,0.01162209,86043.0,86036.0,0.07604]
[1765837463449,0.2907,86042.0,86036.0,0.07604]
[1765837463771,0.2907,86042.0,86037.0,0.05041]
[1765837464349,0.24406339,86044.0,86037.0,0.05041]
[1765837464567,0.2907,86043.0,86037.0,0.05041]
[1765837464737,0.53476462,86043.0,86042.0,0.001]
[1765837464937,0.30232209,86043.0,86042.0,0.001]
[1765837465218,0.52314191,86043.0,86042.0,0.001]
[1765837465434,0.2907,86043.0,86042.0,0.001]
[1765837465633,0.30232196,86044.0,86037.0,0.05041]
[1765837465939,0.2907,86044.0,86037.0,0.05541]
[1765837466138,0.2907,86044.0,86037.0,0.05041]
[1765837466340,0.2907,86044.0,86042.0,0.005]
[1765837466544,0.31696889,86046.0,86042.0,0.005]
[1765837466883,0.00723,86043.0,86042.0,0.005]
[1765837467469,0.00723,86043.0,86037.0,0.001]
[1765837467875,0.00723,86043.0,86037.0,0.005]
[1765837468076,0.00723,86043.0,86037.0,0.001]
[1765837468316,0.00723,86043.0,86036.0,0.02563]
[1765837468520,0.00723,86043.0,86042.0,0.005]
[1765837468724,0.00723,86043.0,86042.0,0.001]
[1765837469674,0.00723,86043.0,86036.0,0.02563]
[1765837469877,0.01162182,86045.0,86036.0,0.02663]
[1765837469878,0.30232196,86044.0,86036.0,0.02663]
[1765837470076,0.2907,86044.0,86036.0,0.07704]
[1765837470644,0.30232196,86044.0,86036.0,0.07704]
[1765837470841,0.30232196,86044.0,86036.0,0.07604]
[1765837471041,0.2907,86044.0,86036.0,0.07604]
[1765837471251,0.2907,86045.0,86042.0,0.004]
[1765837471652,0.00155501,86046.0,86043.0,0.0512]
[1765837471848,0.00155501,86046.0,86045.0,0.0614]
[1765837472081,0.3156232,86049.0,86045.0,0.0614]
[1765837472082,0.32564876,86049.0,86045.0,0.0614]
[1765837472282,0.01162007,86058.0,86048.0,0.03472]
[1765837472487,0.03494558,86056.0,86053.0,0.03472]
[1765837472740,0.24402778,86056.0,86053.0,0.03472]
[1765837472866,0.24402778,86056.0,86053.0,0.08769]
[1765837473073,0.01162034,86056.0,86053.0,0.03472]
[1765837473328,0.01162047,86055.0,86052.0,0.02668]
[1765837473707,0.24402432,86057.0,86054.0,0.03472]
[1765837473907,0.01162007,86058.0,86053.0,0.05297]
[1765837473908,0.05986878,86059.0,86056.0,0.03472]
[1765837474130,0.03494558,86059.0,86058.0,0.03472]
[1765837474324,0.24401331,86061.0,86058.0,0.03472]
[1765837474544,0.01161966,86061.0,86059.0,0.02668]
[1765837474731,0.01161939,86063.0,86059.0,0.02668]
[1765837474930,0.24401013,86062.0,86059.0,0.02668]
[1765837475129,0.23239332,86061.0,86059.0,0.02668]
[1765837475334,0.23239332,86061.0,86059.0,0.02676388]
[1765837475884,0.23239442,86061.0,86059.0,0.02676388]
[1765837476057,0.232396,86060.0,86059.0,0.03076388]
[1765837476286,0.232396,86060.0,86059.0,0.03176388]
[1765837476487,0.232396,86060.0,86059.0,0.02776388]
[1765837476894,0.232396,86060.0,86059.0,0.00108388]
[1765837477016,0.232396,86060.0,86059.0,8.388e-05]
[1765837477752,0.03654246,86064.0,86059.0,0.11845388]
[1765837477950,0.2439989,86066.0,86061.0,0.03472]
[1765837478130,0.2439989,86066.0,86059.0,0.08373388]
[1765837478131,0.2439989,86066.0,86063.0,0.03472]
[1765837478542,0.2439989,86066.0,86063.0,0.08769]
[1765837478743,0.01161885,86067.0,86065.0,0.03472]
[1765837479148,0.26239428,86068.0,86066.0,0.11437]
[1765837479489,0.2323771,86067.0,86066.0,0.11437]
[1765837479841,0.24400133,86066.0,86063.0,0.003]
[1765837480049,0.24400133,86066.0,86065.0,0.001]
[1765837480284,0.23237717,86067.0,86065.0,0.001]
[1765837480967,0.26239428,86068.0,86065.0,0.001]
[1765837481367,0.26239428,86068.0,86061.0,0.02668]
[1765837481368,0.24399726,86067.0,86061.0,0.02384]
[1765837481699,0.24399726,86067.0,86066.0,0.001]
[1765837482014,0.24399726,86067.0,86066.0,0.004]
[1765837482181,0.01161885,86067.0,86061.0,0.02384]
[1765837482381,0.26394929,86068.0,86061.0,0.02384]
[1765837482623,0.26394929,86068.0,86061.0,0.02784]
[1765837482847,0.01995501,86068.0,86061.0,0.02484]
[1765837483057,0.01161885,86067.0,86061.0,0.07781]
[1765837483300,0.53469055,86069.0,86067.0,0.03472]
[1765837483493,0.01161737,86078.0,86068.0,0.03472]
[1765837483699,0.5,86080.0,86069.0,0.08769]
[1765837483914,0.01161723,86079.0,86069.0,0.08769]
[1765837484106,0.01161737,86078.0,86069.0,0.03472]
[1765837484310,0.01161737,86078.0,86070.0,0.05297]
[1765837484456,0.24396993,86077.0,86070.0,0.05297]
[1765837484657,0.01161764,86076.0,86070.0,0.05297]
[1765837484952,0.24396993,86077.0,86070.0,0.05297]
[1765837485174,0.0116175,86077.0,86070.0,0.05297]
[1765837485524,0.01161737,86078.0,86070.0,0.05597]
[1765837485934,0.25,86070.0,86061.0,0.02384]
[1765837486127,0.25,86070.0,86061.0,0.03545966]
[1765837486330,0.00155501,86078.0,86069.0,0.03472]
[1765837486473,0.01317238,86078.0,86069.0,0.03472]
[1765837486669,0.00155501,86078.0,86069.0,0.08769]
[1765837486881,0.00155501,86078.0,86070.0,0.003]
[1765837487163,0.00155501,86078.0,86070.0,0.05597]
[1765837487337,0.0116175,86077.0,86070.0,0.05597]
[1765837487547,0.01317238,86078.0,86070.0,0.05597]
[1765837487757,0.00155501,86078.0,86070.0,0.05697]
[1765837487909,0.00155501,86078.0,86070.0,0.05397]
[1765837488116,0.01317238,86078.0,86070.0,0.05297]
[1765837488318,0.00155501,86078.0,86070.0,0.05297]
[1765837488660,0.24552057,86078.0,86070.0,0.05497]
[1765837488834,0.00155501,86078.0,86070.0,0.05497]
[1765837489374,0.00155501,86078.0,86070.0,0.05597]
[1765837489599,0.01161764,86076.0,86070.0,0.05597]
[1765837489733,0.01161777,86075.0,86070.0,0.05597]
[1765837489942,0.00155501,86078.0,86070.0,0.05597]
[1765837490342,0.01317238,86078.0,86070.0,0.05597]
[1765837490543,0.00155501,86078.0,86070.0,0.05497]
[1765837491097,0.00155501,86078.0,86070.0,0.05697]
[1765837491296,0.00155501,86078.0,86070.0,0.05497]
[1765837491920,0.00155501,86078.0,86070.0,0.05597]
[1765837492902,0.00155501,86078.0,86071.0,0.02668]
[1765837493086,0.01317238,86078.0,86071.0,0.02668]
[1765837493282,0.0116175,86077.0,86071.0,0.02668]
[1765837493703,0.01161764,86076.0,86071.0,0.02668]
[1765837493915,0.24397053,86076.0,86071.0,0.02668]
[1765837494089,0.01161764,86076.0,86071.0,0.02768]
[1765837494489,0.01161764,86076.0,86071.0,0.08065]
[1765837494707,0.0116175,86077.0,86071.0,0.08165]
[1765837494913,0.05055652,86077.0,86071.0,0.08165]
[1765837495158,0.00155501,86078.0,86071.0,0.08165]
[1765837495350,0.0116175,86077.0,86071.0,0.08465]
[1765837495563,0.00155501,86078.0,86071.0,0.08165]
[1765837495862,0.01161777,86075.0,86071.0,0.08165]
[1765837496066,0.01317238,86078.0,86071.0,0.08165]
[1765837496205,0.01317238,86078.0,86071.0,0.02868]
[1765837496401,0.00155501,86078.0,86071.0,0.08265]
[1765837496902,0.00155501,86078.0,86071.0,0.08465]
[1765837497307,0.00155501,86078.0,86071.0,0.08265]
[1765837497662,0.00155501,86078.0,86071.0,0.08065]
[1765837497871,0.00155501,86078.0,86071.0,0.02768]
[1765837498100,0.2323364,86083.0,86071.0,0.02768]
[1765837498101,0.25,86090.0,86077.0,0.03472]
[1765837498293,0.2907,86090.0,86089.0,0.03472]
[1765837498741,0.2907,86090.0,86089.0,0.08769]
[1765837499282,0.17,86103.0,86089.0,0.08769]
[1765837499283,0.25,86100.0,86089.0,0.08769]
[1765837499634,0.0116148,86097.0,86090.0,0.07965]
[1765837499869,0.24391178,86097.0,86090.0,0.07965]
[1765837500056,0.01161507,86095.0,86091.0,0.05297]
[1765837500291,0.01161494,86096.0,86091.0,0.05297]
[1765837500491,0.0003804,86100.0,86095.0,0.03472]
[1765837500724,0.0013804,86100.0,86099.0,0.03472]
[1765837501120,0.0013804,86100.0,86099.0,0.08769]
[1765837501300,0.0003804,86100.0,86099.0,0.08769]
[1765837502126,0.2322677,86108.0,86099.0,0.03772]
[1765837502254,0.01595,86100.0,86099.0,0.00308388]
[1765837502463,0.23228683,86101.0,86099.0,0.00308388]
[1765837502666,0.23228803,86100.0,86099.0,0.00308388]
[1765837503071,0.23228803,86100.0,86099.0,0.00408388]
[1765837503271,0.24545205,86102.0,86099.0,0.00408388]
[1765837503515,0.24545205,86102.0,86099.0,0.00308388]
[1765837503709,0.23228619,86101.0,86099.0,0.00308388]
[1765837503886,0.23228619,86101.0,86099.0,0.00108388]
[1765837504308,0.23228619,86101.0,86099.0,0.00208388]
[1765837504514,0.23228803,86100.0,86099.0,0.00208388]
[1765837504727,0.24545205,86102.0,86099.0,0.00308388]
[1765837506055,0.24545205,86102.0,86099.0,8.388e-05]
[1765837506262,0.24545205,86102.0,86099.0,0.00108388]
[1765837506422,0.23228537,86101.0,86099.0,0.00108388]
[1765837506625,0.54304803,86100.0,86099.0,8.388e-05]
[1765837506832,2.63784117,86100.0,86099.0,8.388e-05]
[1765837507016,2.64865053,86100.0,86099.0,0.00108388]
[1765837507367,2.64865053,86100.0,86099.0,0.00308388]
[1765837507576,2.64865053,86100.0,86099.0,8.388e-05]
[1765837507778,2.76498168,86100.0,86099.0,8.388e-05]
[1765837507930,2.76498168,86100.0,86099.0,0.00208388]
[1765837508337,2.76498168,86100.0,86099.0,0.00108388]
[1765837508760,2.76598168,86100.0,86099.0,0.00108388]
[1765837508967,2.76598168,86100.0,86099.0,8.388e-05]
[1765837509339,0.01161764,86076.0,86067.0,0.06831388]
[1765837509526,0.00011403,86076.0,86067.0,0.06831388]
[1765837509966,0.01173167,86076.0,86067.0,0.06831388]
[1765837510976,0.01173167,86076.0,86068.0,0.0537]
[1765837511129,0.24408459,86076.0,86068.0,0.0537]
[1765837511330,0.00011403,86076.0,86068.0,0.0537]
[1765837512775,0.00011403,86076.0,86068.0,0.0547]
[1765837514665,0.00011403,86076.0,86068.0,0.0567]
[1765837525605,0.01173167,86076.0,86068.0,0.0567]
[1765837525886,0.00011403,86076.0,86068.0,0.0567]
[1765837527991,0.00011403,86076.0,86075.0,0.06097]
[1765837528227,0.00011403,86076.0,86068.0,0.0567]
[1765837528228,0.01173167,86076.0,86068.0,0.0567]
[1765837528406,0.24397524,86075.0,86068.0,0.0567]
[1765837528761,0.24408622,86076.0,86068.0,0.0557]
[1765837528967,0.24408622,86076.0,86075.0,0.001]
[1765837529305,0.24408622,86076.0,86075.0,0.003]
[1765837529499,0.24408622,86076.0,86075.0,0.001]
[1765837530908,0.00011403,86076.0,86075.0,0.001]
[1765837531247,0.00011403,86076.0,86071.0,0.02653]
[1765837531248,0.01173167,86076.0,86071.0,0.02653]
[1765837531440,0.01173167,86076.0,86075.0,0.002]
[1765837532352,0.24408447,86076.0,86075.0,0.002]
[1765837532992,0.24408447,86076.0,86075.0,0.03509]
[1765837533212,0.24408447,86076.0,86075.0,0.08805]
[1765837533213,0.00011403,86076.0,86075.0,0.08805]
[1765837533573,0.00011403,86076.0,86075.0,0.08905]
[1765837534417,0.00011403,86076.0,86075.0,0.3214055]
[1765837535854,0.00011403,86076.0,86075.0,0.66212389]
[1765837536841,0.00011403,86076.0,86075.0,0.66112389]
[1765837537289,0.00011403,86076.0,86075.0,0.66712389]
[1765837537490,0.0004,86113.0,86107.0,0.01161345]
[1765837537709,0.01161103,86125.0,86119.0,0.02307]
[1765837537908,0.01172533,86125.0,86119.0,0.02307]
[1765837538225,0.0001143,86125.0,86119.0,0.02307]
[1765837538430,0.0001143,86125.0,86119.0,0.07603]
[1765837539217,0.0001143,86125.0,86124.0,0.05985]
[1765837539620,0.0001143,86125.0,86124.0,0.11281]
[1765837539828,0.0011143,86125.0,86124.0,0.11281]
[1765837540197,0.0001143,86125.0,86124.0,0.11281]
[1765837540600,0.0001143,86125.0,86124.0,0.13603233]
[1765837541485,0.0001143,86125.0,86124.0,0.13703233]
[1765837541817,0.0001143,86125.0,86124.0,0.13903233]
[1765837542021,0.0001143,86125.0,86124.0,0.13703233]
[1765837542383,0.0001143,86125.0,86124.0,0.14103233]
[1765837542581,0.0001143,86125.0,86124.0,0.14003233]
[1765837542983,0.0001143,86125.0,86124.0,0.14403233]
[1765837545253,0.01160698,86155.0,86138.0,0.01160927]
[1765837545461,0.01327623,86155.0,86149.0,0.02676]
[1765837546574,0.10044197,86156.0,86149.0,0.02676]
[1765837546774,0.01160698,86155.0,86149.0,0.02676]
[1765837547004,0.23214028,86155.0,86149.0,0.02676]
[1765837547152,0.23314028,86155.0,86149.0,0.02676]
[1765837547354,0.01160712,86154.0,86149.0,0.02676]
[1765837547555,0.01160739,86152.0,86149.0,0.02676]
[1765837547778,0.001,86155.0,86149.0,0.07972]
[1765837548406,0.01260698,86155.0,86149.0,0.07972]
[1765837548587,0.01160698,86155.0,86149.0,0.07972]
[1765837548788,0.30230644,86159.0,86149.0,0.07972]
[1765837548993,0.01160658,86158.0,86149.0,0.07972]
[1765837549193,0.30230644,86159.0,86149.0,0.07972]
[1765837549598,0.01160658,86158.0,86149.0,0.07972]
[1765837549797,0.53443596,86159.0,86149.0,0.07972]
[1765837549997,0.23213175,86158.0,86149.0,0.07972]
[1765837550279,0.01160658,86158.0,86149.0,0.07972]
[1765837550416,0.24374695,86155.0,86149.0,0.07972]
[1765837550609,0.01160698,86155.0,86149.0,0.02676]
[1765837550815,0.30330644,86159.0,86150.0,0.05296]
[1765837551054,0.01160671,86157.0,86150.0,0.05296]
[1765837551198,0.01160658,86158.0,86150.0,0.05296]
[1765837551398,0.01160712,86154.0,86150.0,0.05296]
[1765837551604,0.24374677,86155.0,86150.0,0.05296]
[1765837551834,0.01160712,86154.0,86150.0,0.05296]
[1765837552032,0.01160725,86153.0,86150.0,0.05296]
[1765837552249,0.24374677,86155.0,86150.0,0.05296]
[1765837552609,0.01160698,86155.0,86150.0,0.05296]
[1765837552809,0.24374391,86156.0,86150.0,0.05296]
[1765837553047,0.23214067,86155.0,86150.0,0.05296]
[1765837553253,0.24374391,86156.0,86150.0,0.05296]
[1765837553768,0.01160671,86157.0,86150.0,0.05296]
[1765837553909,0.001,86156.0,86150.0,0.05296]
[1765837554463,0.01260685,86156.0,86150.0,0.05296]
[1765837554863,0.001,86156.0,86150.0,0.05296]
[1765837555060,0.01160671,86157.0,86150.0,0.05296]
[1765837555278,0.01160685,86156.0,86150.0,0.05296]
[1765837555624,0.24374438,86156.0,86150.0,0.05296]
[1765837556012,0.01160685,86156.0,86150.0,0.05296]
[1765837556217,0.52283085,86159.0,86150.0,0.05296]
[1765837556450,0.01260685,86156.0,86150.0,0.05296]
[1765837556667,0.01160698,86155.0,86150.0,0.05296]
[1765837556835,0.001,86156.0,86150.0,0.05296]
[1765837557445,0.001,86156.0,86155.0,0.02676]
[1765837558165,0.24373599,86159.0,86155.0,0.02676]
[1765837558326,0.24473599,86159.0,86155.0,0.02676]
[1765837558712,0.001,86159.0,86155.0,0.02676]
[1765837558889,0.0004,86160.0,86155.0,0.02676]
[1765837559102,0.01160658,86158.0,86155.0,0.02676]
[1765837559312,0.03564,86156.0,86144.0,0.02676]
[1765837559510,0.01160698,86155.0,86149.0,0.02676]
[1765837559722,0.24374727,86155.0,86149.0,0.02676]
[1765837560012,0.24375033,86154.0,86149.0,0.02676]
[1765837560257,0.24375033,86154.0,86144.0,0.02687424]
[1765837560258,0.01160739,86152.0,86144.0,0.02687424]
[1765837560679,0.01160752,86151.0,86144.0,0.07983424]
[1765837560892,0.01160739,86152.0,86144.0,0.07983424]
[1765837561305,0.01160806,86147.0,86144.0,0.00011424]
[1765837561503,2.55710669,86145.0,86144.0,0.00011424]
[1765837561851,2.59114669,86145.0,86144.0,0.00011424]
[1765837562379,2.61602998,86145.0,86144.0,0.00011424]
[1765837564304,2.6268542,86145.0,86144.0,0.00011424]
[1765837564504,2.74318535,86145.0,86144.0,0.00011424]
[1765837566353,2.6268542,86145.0,86144.0,0.00011424]
[1765837566657,2.66836022,86145.0,86144.0,0.00011424]
[1765837567262,2.6268542,86145.0,86144.0,0.00011424]
[1765837569455,2.5585742,86145.0,86144.0,0.00011424]
[1765837569712,2.6239142,86145.0,86144.0,0.00011424]
[1765837569912,2.6237142,86145.0,86144.0,0.00011424]
[1765837570232,2.62374001,86145.0,86144.0,0.00011424]
[1765837570452,0.03573332,86145.0,86144.0,0.00011424]
[1765837570656,0.01160779,86149.0,86144.0,0.03513424]
[1765837570858,0.01160779,86149.0,86146.0,0.03502]
[1765837571059,0.23215878,86148.0,86146.0,0.03502]
[1765837571256,0.2321613,86147.0,86146.0,0.03502]
[1765837571467,0.02488329,86150.0,86147.0,0.03502]
[1765837571681,0.0420618,86160.0,86149.0,0.03402]
[1765837571682,0.2504,86160.0,86149.0,0.03402]
[1765837571937,0.0004,86160.0,86159.0,0.03502]
[1765837572240,0.0004,86160.0,86159.0,0.08678]
[1765837572737,0.0004,86160.0,86159.0,0.03502]
[1765837574197,0.0004,86160.0,86159.0,0.08678]
[1765837574416,0.0004,86160.0,86159.0,0.08839287]
[1765837574860,0.0004,86160.0,86159.0,0.05337287]
[1765837575062,0.0004,86160.0,86159.0,0.08839287]
[1765837576698,0.50973024,86170.0,86159.0,0.08839287]
[1765837576699,0.50973024,86170.0,86162.0,0.06109]
[1765837577430,0.50973024,86170.0,86162.0,0.11285]
[1765837577926,0.51073024,86170.0,86162.0,0.11446287]
[1765837578341,0.51073024,86170.0,86162.0,0.06270287]
[1765837578547,0.01073024,86170.0,86169.0,0.06109]
[1765837578766,0.01073024,86170.0,86169.0,0.11285]
[1765837579642,0.01073024,86170.0,86169.0,0.11385]
[1765837579643,0.00973024,86170.0,86169.0,0.11385]
[1765837580229,0.00973024,86170.0,86169.0,0.11485]
[1765837585590,0.00973024,86170.0,86169.0,0.11646287]
[1765837591364,0.00973024,86170.0,86169.0,0.002]
[1765837591365,0.30902957,86170.0,86169.0,0.002]
[1765837592399,0.27542957,86170.0,86169.0,0.001]
[1765837593018,0.24376371,86149.0,86142.0,0.07954]